bitfinex-derivatives/quotes_ETHF0:USTF0_20250212
["timestamp","ask_amount","ask_price","bid_price","bid_amount"]
[1739390774216,1.1682,2672.8,2672.5,3.2078]
[1739390774415,0.7483,2672.6,2672.3,0.5863]
[1739390774721,1.1682,2672.8,2672.7,0.74827]
[1739390775216,0.7482,2673.0,2672.9,0.74821]
[1739390775417,0.74825,2672.8,2672.7,0.74825]
[1739390776116,0.74828,2672.7,2672.6,0.74829]
[1739390776813,6.22903,2673.1,2672.3,2.45723]
[1739390777115,0.74823,2672.9,2672.8,0.74821]
[1739390777310,0.74826,2672.8,2672.7,0.74825]
[1739390777506,6.1815,2673.1,2672.5,3.2078]
[1739390777708,0.74832,2672.6,2672.5,0.74831]
[1739390778315,0.74832,2672.6,2672.3,0.5863]
[1739390778316,1.696,2672.8,2672.3,0.5863]
[1739390778613,1.90855,2672.5,2672.4,0.74833]
[1739390779117,2.20785,2672.5,2672.4,0.74833]
[1739390779305,1.4595,2672.5,2672.4,0.74833]
[1739390779707,0.2993,2672.5,2672.4,0.74833]
[1739390779911,0.5986,2672.5,2672.4,0.74833]
[1739390780221,1.34692,2672.5,2672.4,0.74833]
[1739390780512,1.34692,2672.5,2672.3,0.5863]
[1739390780706,0.74835,2672.4,2672.3,0.74836]
[1739390781311,0.9354,2672.4,2672.3,0.74836]
[1739390781511,1.68375,2672.4,2672.3,0.74836]
[1739390784019,0.9354,2672.4,2671.9,8.20722085]
[1739390784227,0.74847,2672.1,2672.0,0.74844]
[1739390785921,0.74847,2672.1,2672.0,0.74847]
[1739390789120,0.7484,2672.3,2672.2,0.74838]
[1739390789426,8.08429,2672.4,2672.3,0.74838]
[1739390789734,0.74843,2672.2,2672.1,0.7484]
[1739390790432,5.8392,2672.4,2672.0,0.5866]
[1739390790725,0.74841,2672.3,2672.2,0.74838]
[1739390790928,2.24521,2672.3,2672.2,0.74838]
[1739390791321,2.24521,2672.3,2672.2,1.32958]
[1739390792026,0.74841,2672.3,2672.2,1.32958]
[1739390793626,3.37977,2672.4,2672.3,0.74838]
[1739390793829,0.74838,2672.3,2672.2,1.32959]
[1739390794635,5.07876,2672.3,2671.6,3.2078]
[1739390794928,0.74851,2671.9,2671.8,0.74848]
[1739390795723,0.74855,2671.7,2671.6,3.95637]
[1739390796524,0.74855,2671.7,2671.6,0.74857]
[1739390796725,0.74861,2671.6,2671.5,0.74858]
[1739390796926,3.89212085,2671.6,2671.1,3.2078]
[1739390797132,0.74876,2671.0,2670.8,0.74879]
[1739390797433,2.44476,2671.0,2670.8,0.74879]
[1739390797633,2.44476,2671.0,2670.8,0.74878]
[1739390798033,1.696,2671.0,2670.5,3.2078]
[1739390798429,1.696,2671.0,2670.7,0.74881]
[1739390798733,0.74879,2670.9,2670.7,0.74881]
[1739390799033,1.696,2671.0,2670.8,0.7488]
[1739390799034,2.44476,2671.0,2670.8,0.7488]
[1739390799226,1.696,2671.0,2670.4,1.1668]
[1739390799630,2.44476,2671.0,2670.8,0.74879]
[1739390800036,1.696,2671.0,2670.5,3.2078]
[1739390800527,2.44476,2671.0,2670.5,3.2078]
[1739390800722,2.44477,2671.0,2670.7,0.74881]
[1739390801230,0.74877,2670.9,2670.5,3.2078]
[1739390801432,2.24637,2670.9,2670.7,0.74882]
[1739390803130,1.4976,2670.9,2670.7,0.74882]
[1739390803338,1.4976,2670.9,2670.5,3.2078]
[1739390803538,1.4976,2670.9,2670.8,0.7488]
[1739390804947,1.6865,2670.9,2670.8,0.7488]
[1739390805354,1.6865,2670.9,2670.8,3.9566]
[1739390806244,1.6865,2670.9,2670.8,4.5078]
[1739390807251,0.00561094,2671.8,2671.7,0.74855]
[1739390807455,0.00561094,2671.8,2671.7,7.25687085]
[1739390808440,0.30501094,2671.8,2671.7,7.25687085]
[1739390809345,1.4968,2672.2,2672.1,0.74844]
[1739390809545,1.4968,2672.2,2672.1,3.95624]
[1739390809745,0.7483,2672.6,2672.3,0.74836]
[1739390809945,0.74832,2672.6,2672.2,0.74841]
[1739390810151,4.9038,2672.7,2672.0,3.30052085]
[1739390810350,0.1616,2672.6,2672.1,0.00561094]
[1739390810548,0.74834,2672.5,2672.2,0.74838]
[1739390811547,0.4609,2672.6,2672.1,0.00561094]
[1739390811750,0.74841,2672.2,2672.1,0.00561094]
[1739390812055,3.76142085,2672.6,2672.1,0.75404094]
[1739390812352,0.7484,2672.3,2672.1,0.00561094]
[1739390812946,3.76142085,2672.6,2672.1,0.75403094]
[1739390813143,0.74834,2672.5,2672.2,0.74838]
[1739390813356,0.74834,2672.5,2672.3,0.74838]
[1739390813556,1.20922,2672.6,2672.3,0.74838]
[1739390813747,1.20922,2672.6,2672.1,0.00561094]
[1739390813748,1.20922,2672.6,2672.4,0.74835]
[1739390814159,1.20922,2672.6,2672.5,0.74832]
[1739390814160,2.1569,2672.6,2672.5,0.74832]
[1739390814456,2.1569,2672.6,2672.2,3.2078]
[1739390814754,0.74832,2672.5,2672.4,0.74835]
[1739390816553,2.1569,2672.6,2672.1,0.00561094]
[1739390816757,0.74834,2672.5,2672.1,0.00561094]
[1739390817055,0.74834,2672.5,2672.4,0.74835]
[1739390817862,2.1569,2672.6,2672.5,0.74832]
[1739390818358,2.9052,2672.6,2672.5,0.74832]
[1739390819358,0.74835,2672.5,2672.4,0.74834]
[1739390819550,0.7484,2672.3,2672.2,0.74837]
[1739390819952,0.7484,2672.3,2672.1,0.00561094]
[1739390819953,0.74837,2672.4,2672.3,0.74835]
[1739390820152,0.74837,2672.4,2672.1,0.00561094]
[1739390820153,2.1569,2672.6,2672.5,0.74832]
[1739390820353,2.1559,2672.6,2672.5,0.74832]
[1739390821258,1.28338,2672.5,2672.3,3.30052085]
[1739390821459,1.28338,2672.5,2672.4,0.74835]
[1739390822560,2.9042,2672.6,2672.5,0.74832]
[1739390822859,2.1559,2672.6,2672.5,0.74832]
[1739390823453,2.1559,2672.6,2672.2,3.85912085]
[1739390823654,0.74833,2672.5,2672.4,0.74832]
[1739390824963,2.1559,2672.6,2672.1,0.00561094]
[1739390825165,1.87082,2672.5,2672.1,0.00561094]
[1739390825359,0.74841,2672.2,2672.1,0.75404094]
[1739390825956,0.74837,2672.4,2672.3,0.74837]
[1739390826161,0.74837,2672.4,2672.1,0.00561094]
[1739390826162,0.74839,2672.3,2672.2,0.74839]
[1739390826662,0.74839,2672.3,2672.2,0.74841]
[1739390827759,0.1616,2672.3,2672.2,4.04893085]
[1739390829264,0.1616,2672.3,2672.2,10.04893085]
[1739390829462,1.5815,2672.6,2672.5,4.04884085]
[1739390829859,1.5815,2672.6,2672.5,0.74832]
[1739390829860,0.2993,2672.6,2672.5,0.74832]
[1739390830858,0.2993,2672.6,2672.5,4.04884085]
[1739390833363,0.2993,2672.6,2672.5,0.74832]
[1739390834264,0.2993,2672.6,2672.5,7.25664085]
[1739390835567,0.00561094,2672.7,2672.5,12.50832085]
[1739390835767,0.00561094,2672.7,2672.6,1.3225]
[1739390836567,1.50221094,2672.7,2672.6,1.3225]
[1739390837170,1.73791094,2672.7,2672.6,1.3225]
[1739390837469,1.73791094,2672.7,2672.6,0.7483]
[1739390838860,1.2822,2672.9,2672.5,7.07512085]
[1739390839067,2.2931,2673.8,2672.8,6.50832085]
[1739390839262,0.5679,2673.7,2673.6,4.04854085]
[1739390839468,0.5644,2673.9,2673.8,0.74796]
[1739390840064,0.5644,2673.9,2673.7,0.74797]
[1739390840372,0.001,2674.0,2673.6,3.30613179]
[1739390840573,0.001,2674.0,2673.9,0.74793]
[1739390840773,0.001,2674.0,2673.9,4.04845085]
[1739390843873,0.001,2674.0,2673.9,0.74793]
[1739390844875,3.2088,2674.0,2673.6,0.00561094]
[1739390845075,1.694,2673.9,2673.6,0.00561094]
[1739390845367,2.44195,2673.9,2673.6,0.00561094]
[1739390845569,3.2088,2674.0,2673.6,3.30613179]
[1739390845769,3.2088,2674.0,2673.9,4.04845085]
[1739390846173,0.001,2674.0,2673.9,4.04845085]
[1739390846668,0.59941094,2674.1,2673.9,4.04845085]
[1739390846669,0.00561094,2674.1,2674.0,0.74791]
[1739390846875,0.00561094,2674.1,2674.0,3.95571]
[1739390847471,1.4957,2674.3,2674.0,3.2078]
[1739390847779,1.4957,2674.3,2674.2,4.04837085]
[1739390848173,0.5531,2674.8,2674.6,0.74771]
[1739390848375,0.5531,2674.8,2674.7,0.74771]
[1739390848673,3.2078,2674.9,2674.8,0.74768]
[1739390852072,0.00561094,2675.0,2674.9,0.74765]
[1739390854575,0.94011094,2675.0,2674.9,0.74765]
[1739390863881,0.94011094,2675.0,2674.9,1.32865]
[1739390864491,0.94111094,2675.0,2674.9,1.32865]
[1739390865087,0.94111094,2675.0,2674.9,0.74765]
[1739390868592,0.94111094,2675.0,2674.9,3.95545]
[1739390869685,2.34681094,2675.0,2674.9,3.95545]
[1739390874390,3.2078,2676.0,2674.9,12.50832085]
[1739390874595,3.741,2677.6,2675.8,3.2078]
[1739390874596,0.5937,2676.1,2675.8,3.2078]
[1739390874793,1.693,2676.7,2676.6,0.74718]
[1739390874995,0.5937,2676.8,2676.4,3.30052085]
[1739390875195,0.5937,2676.8,2676.7,4.04767085]
[1739390877299,0.5937,2676.8,2676.7,3.30052085]
[1739390877506,0.74718,2676.6,2676.5,0.00561094]
[1739390877896,2.8656,2676.7,2676.5,0.00561094]
[1739390878098,0.74718,2676.6,2676.5,0.00561094]
[1739390878500,0.74718,2676.6,2676.5,0.75282094]
[1739390879009,2.8656,2676.7,2676.6,0.74718]
[1739390879202,1.1736,2676.7,2676.6,0.63748]
[1739390880602,1.1736,2676.7,2676.6,3.84528]
[1739390887010,1.92075,2676.7,2676.6,3.84528]
[1739390887610,0.74718,2676.6,2676.5,0.00561094]
[1739390887811,0.74729,2676.2,2676.0,0.74732]
[1739390888010,0.5541,2676.1,2675.8,3.2078]
[1739390888215,0.74737,2675.9,2675.8,3.2078]
[1739390888411,3.2078,2675.9,2675.2,3.2078]
[1739390888613,0.74746,2675.6,2675.4,0.7475]
[1739390888814,3.95526,2675.6,2675.3,0.74751]
[1739390889020,3.2078,2675.6,2675.2,3.30613179]
[1739390889220,0.7475,2675.5,2675.2,4.05369179]
[1739390889416,3.95527,2675.6,2675.3,0.74753]
[1739390889614,0.555,2675.4,2675.3,0.74753]
[1739390890122,0.555,2675.4,2675.2,3.30613179]
[1739390890123,0.555,2675.4,2675.2,4.05368179]
[1739390891108,0.555,2675.4,2675.3,0.74754]
[1739390891709,0.5519,2675.8,2675.3,3.2078]
[1739390891914,4.3092,2676.0,2675.8,0.7474]
[1739390892122,4.3092,2676.0,2675.9,3.30052085]
[1739390893123,4.3092,2676.0,2675.9,4.04789085]
[1739390893321,4.3092,2676.0,2675.9,3.30052085]
[1739390893622,5.05655,2676.0,2675.8,0.74739]
[1739390893815,4.3092,2676.0,2675.7,3.8358763]
[1739390894018,4.3092,2676.0,2675.8,0.74739]
[1739390894216,5.05655,2676.0,2675.8,0.74739]
[1739390894712,5.05656,2676.0,2675.8,0.74739]
[1739390895118,4.3092,2676.0,2675.4,3.8358763]
[1739390895316,4.3092,2676.0,2675.2,0.00561094]
[1739390895317,3.2078,2675.7,2675.2,0.00561094]
[1739390895515,4.8998,2675.7,2675.2,0.00561094]
[1739390895917,0.74751,2675.5,2675.3,0.74754]
[1739390896224,1.30261,2675.4,2675.2,0.00561094]
[1739390896519,0.74754,2675.3,2675.2,0.00561094]
[1739390896820,4.52704,2675.3,2675.2,0.00561094]
[1739390897715,1.31924,2675.3,2675.2,0.00561094]
[1739390897915,4.52704,2675.3,2675.2,0.00561094]
[1739390903328,6.21904,2675.3,2675.2,0.00561094]
[1739390904326,3.2078,2675.3,2675.2,0.00561094]
[1739390904527,1.0047,2675.4,2675.2,3.80921094]
[1739390904729,1.0047,2675.4,2675.3,0.74754]
[1739390904927,1.0047,2675.4,2675.3,1.34934]
[1739390909227,1.0047,2675.4,2675.2,4.70280438]
[1739390909228,1.0047,2675.4,2675.2,4.39931094]
[1739390909428,1.0047,2675.4,2675.3,0.74754]
[1739390909623,0.74749,2675.5,2675.3,0.74754]
[1739390910033,0.74748,2675.6,2675.4,0.7475]
[1739390910223,0.74744,2675.7,2675.5,0.74746]
[1739390910425,0.74744,2675.7,2675.5,0.74749]
[1739390910630,1.0048,2675.6,2675.5,0.74749]
[1739390911728,1.75228,2675.6,2675.4,4.5833663]
[1739390912030,1.0048,2675.6,2675.5,0.74749]
[1739390913518,1.0048,2675.6,2675.5,3.95529]
[1739390914133,1.0048,2675.6,2675.5,3.2078]
[1739390914333,1.75226,2675.6,2675.5,3.2078]
[1739390914531,1.75226,2675.6,2675.2,1.74921094]
[1739390914532,1.0048,2675.6,2675.2,1.19151094]
[1739390914827,1.0048,2675.6,2675.3,0.74753]
[1739390914828,0.74752,2675.4,2675.3,0.74753]
[1739390915024,1.0048,2675.6,2675.3,0.74752]
[1739390915624,1.0048,2675.6,2675.2,0.00561094]
[1739390915819,0.74754,2675.3,2675.2,0.00561094]
[1739390918326,0.74754,2675.3,2675.2,0.75318094]
[1739390918530,1.0048,2675.6,2675.2,0.00561094]
[1739390918730,1.692,2675.6,2675.5,3.29815522]
[1739390919134,3.2078,2675.7,2675.5,3.29815522]
[1739390919328,0.74746,2675.6,2675.5,4.04563522]
[1739390919734,0.74746,2675.6,2675.5,3.29815522]
[1739390920033,0.74749,2675.5,2675.4,0.74749]
[1739390920334,0.74748,2675.6,2675.5,0.74748]
[1739390920537,0.74748,2675.6,2675.4,0.74749]
[1739390920731,0.74749,2675.5,2675.4,0.74749]
[1739390921237,3.2078,2675.7,2675.3,3.29815522]
[1739390921430,0.74746,2675.6,2675.5,0.74748]
[1739390921732,0.74746,2675.6,2675.4,0.74749]
[1739390921929,0.74749,2675.5,2675.4,0.74749]
[1739390922233,0.74749,2675.5,2675.4,0.74751]
[1739390922428,0.74746,2675.6,2675.3,3.29815522]
[1739390922635,0.74746,2675.6,2675.5,0.74748]
[1739390922836,0.74749,2675.5,2675.4,0.74749]
[1739390923738,0.74748,2675.6,2675.5,0.74748]
[1739390925840,0.74749,2675.5,2675.4,0.74749]
[1739390926729,0.74748,2675.6,2675.3,3.29815522]
[1739390926931,0.7475,2675.5,2675.4,0.74749]
[1739390927337,3.2078,2675.7,2675.3,3.29815522]
[1739390927632,0.74748,2675.6,2675.5,0.74747]
[1739390928337,3.2078,2675.7,2675.3,3.29815522]
[1739390928530,0.74748,2675.6,2675.5,0.74748]
[1739390928941,0.75040358,2675.6,2675.5,0.74748]
[1739390930440,0.75040358,2675.6,2675.3,3.29815522]
[1739390930441,0.00292358,2675.6,2675.3,3.29815522]
[1739390930637,0.7475,2675.5,2675.4,0.74749]
[1739390931034,0.75040358,2675.6,2675.5,0.74749]
[1739390932842,0.00292358,2675.6,2675.5,0.74749]
[1739390933241,0.00292358,2675.6,2675.5,3.95529]
[1739390933544,3.2078,2676.3,2676.1,0.74732]
[1739390933846,3.2078,2676.3,2676.1,4.04547522]
[1739390934043,3.2078,2676.3,2676.0,0.74734]
[1739390934344,3.2078,2676.3,2675.9,0.6022]
[1739390934544,0.75290094,2676.2,2676.1,0.74732]
[1739390934841,0.75290094,2676.2,2675.9,0.6022]
[1739390934842,0.75290094,2676.2,2676.0,0.74733]
[1739390935335,0.00561094,2676.2,2676.0,0.74734]
[1739390935539,0.75292094,2676.2,2676.0,0.74734]
[1739390935838,0.75292094,2676.2,2675.9,0.6022]
[1739390935839,0.75292094,2676.2,2676.1,0.74732]
[1739390936746,0.00561094,2676.2,2676.0,0.74732]
[1739390936950,0.74735,2676.0,2675.9,1.34955]
[1739390937644,0.74735,2676.0,2675.9,0.74735]
[1739390937947,0.5778,2676.1,2676.0,0.74735]
[1739390938549,1.32512,2676.1,2676.0,0.74735]
[1739390938846,0.5778,2676.1,2676.0,0.74735]
[1739390939248,0.00561094,2676.2,2676.1,0.74732]
[1739390939551,0.00561094,2676.2,2676.1,4.04547522]
[1739390939961,0.00561094,2676.2,2676.1,4.61157522]
[1739390941249,0.75290094,2676.2,2676.1,4.61157522]
[1739390941744,0.00561094,2676.2,2676.1,4.61157522]
[1739390944750,3.2078,2677.0,2676.9,0.7471]
[1739390945154,0.5609,2677.3,2677.2,0.74701]
[1739390945356,0.5609,2677.3,2677.2,4.04516522]
[1739390945651,0.5609,2677.3,2677.0,0.5735]
[1739390945955,0.5609,2677.3,2677.0,0.57911094]
[1739390946353,1.30789,2677.3,2677.1,0.74703]
[1739390946550,0.5609,2677.3,2677.0,0.57911094]
[1739390946754,3.80041094,2677.5,2677.3,0.74697]
[1739390947060,4.54735094,2677.5,2677.3,0.74697]
[1739390947442,3.96035094,2677.5,2677.3,0.74697]
[1739390947653,3.96035094,2677.5,2677.4,0.74696]
[1739390947654,3.21341094,2677.5,2677.4,0.74696]
[1739390948049,3.96035094,2677.5,2677.3,0.74697]
[1739390948456,3.96035094,2677.5,2677.4,0.74696]
[1739390948652,3.21341094,2677.5,2677.2,3.29815522]
[1739390948857,3.21341094,2677.5,2677.0,0.57911094]
[1739390949152,0.74704,2677.1,2677.0,0.75267094]
[1739390949651,0.74703,2677.2,2677.1,0.74704]
[1739390950152,0.74698,2677.3,2677.2,0.74701]
[1739390950947,1.1789,2677.4,2677.3,0.74698]
[1739390951150,3.21341094,2677.5,2677.4,0.74696]
[1739390951151,3.96036094,2677.5,2677.4,0.74696]
[1739390951654,0.74696,2677.4,2677.3,0.74697]
[1739390952054,3.21341094,2677.5,2677.2,0.74698]
[1739390952251,0.74698,2677.4,2677.3,0.74696]
[1739390953050,3.96036094,2677.5,2677.4,0.74696]
[1739390953250,0.00561094,2677.5,2677.4,0.74696]
[1739390953760,0.00561094,2677.5,2677.4,3.95476]
[1739390953950,7.771,2679.2,2678.0,0.74679]
[1739390953951,1.1096,2678.1,2678.0,0.74679]
[1739390954155,3.2078,2678.4,2678.0,3.29815522]
[1739390954557,3.2078,2678.4,2678.3,0.7467]
[1739390954957,3.2078,2678.4,2678.2,0.74671]
[1739390955157,3.2078,2678.4,2678.0,3.29815522]
[1739390955355,3.95448,2678.4,2678.0,3.29815522]
[1739390955755,3.95448,2678.4,2678.2,0.74672]
[1739390955955,0.00370396,2678.6,2678.3,3.29815522]
[1739390956164,0.00370396,2678.6,2678.5,0.74665]
[1739390959961,0.00370396,2678.6,2678.3,3.88355522]
[1739390960161,0.00370396,2678.6,2678.4,0.74665]
[1739390960361,0.00370396,2678.6,2678.0,3.29815522]
[1739390960665,0.74668,2678.4,2678.2,0.74671]
[1739390960861,0.5696,2678.3,2678.2,0.74671]
[1739390961552,0.56280396,2678.6,2678.5,0.74665]
[1739390961755,0.57330396,2678.6,2678.5,0.74665]
[1739390961958,0.00370396,2678.6,2678.5,0.74665]
[1739390962362,0.00370396,2678.6,2678.2,0.5803]
[1739390962555,0.00370396,2678.6,2678.0,3.29815522]
[1739390962756,3.2078,2678.5,2678.0,3.29815522]
[1739390962961,0.74672,2678.3,2677.8,3.7881]
[1739390963163,0.5522,2678.2,2678.1,0.74673]
[1739390964060,0.5522,2678.2,2678.1,0.74676]
[1739390964664,1.29893,2678.2,2678.1,0.74676]
[1739390964968,0.5522,2678.2,2678.1,0.74676]
[1739390965662,1.149,2678.4,2678.3,0.7467]
[1739390965870,1.89568,2678.4,2678.3,0.7467]
[1739390966068,1.89569,2678.4,2678.0,3.29815522]
[1739390966264,0.74671,2678.3,2678.0,3.29815522]
[1739390966568,0.74672,2678.3,2678.1,0.74674]
[1739390966767,0.7467,2678.3,2678.1,0.74674]
[1739390966961,0.7467,2678.3,2678.0,3.29815522]
[1739390967158,0.7467,2678.3,2678.2,0.74673]
[1739390967362,1.149,2678.4,2678.0,3.29815522]
[1739390967563,1.149,2678.4,2678.3,0.7467]
[1739390967769,1.89568,2678.4,2678.3,0.7467]
[1739390967964,1.89568,2678.4,2678.2,0.74671]
[1739390968165,1.149,2678.4,2678.0,3.29815522]
[1739390968366,0.74672,2678.3,2678.0,3.29815522]
[1739390968668,1.89569,2678.4,2678.3,0.7467]
[1739390968974,1.149,2678.4,2678.0,3.29815522]
[1739390969173,1.149,2678.4,2678.3,0.7467]
[1739390969174,1.89569,2678.4,2678.3,0.7467]
[1739390969776,1.149,2678.4,2678.0,3.29815522]
[1739390969967,0.74671,2678.3,2678.2,0.74671]
[1739390971077,1.149,2678.4,2678.3,0.7467]
[1739390971276,1.89568,2678.4,2678.3,0.7467]
[1739390971478,1.149,2678.4,2678.0,3.29815522]
[1739390971673,0.74674,2678.2,2678.1,0.74674]
[1739390974375,1.149,2678.4,2677.8,3.7881]
[1739390974581,3.2078,2678.2,2677.4,3.29815522]
[1739390974872,0.7468,2678.1,2678.0,0.74677]
[1739390975786,0.74681,2678.0,2677.9,0.7468]
[1739390976077,0.7469,2677.6,2677.5,1.32663]
[1739390976280,5.64527,2677.9,2677.1,3.59392093]
[1739390976477,0.74692,2677.6,2677.5,0.74692]
[1739390976778,0.5471,2677.8,2677.1,3.87785522]
[1739390977086,0.74695,2677.5,2677.4,0.74694]
[1739390977284,0.5471,2677.8,2677.1,5.74542522]
[1739390977671,0.74691,2677.6,2677.5,0.7469]
[1739390978081,0.74694,2677.5,2677.4,0.74694]
[1739390978284,0.5471,2677.8,2677.1,5.74542522]
[1739390978582,0.747,2677.3,2677.2,0.74699]
[1739390978977,0.74694,2677.5,2677.4,0.74694]
[1739390979179,0.5471,2677.8,2677.1,5.74544522]
[1739390979486,0.74694,2677.5,2677.4,0.74694]
[1739390979787,2.41425,2677.8,2677.1,3.87785522]
[1739390980084,0.74699,2677.3,2677.2,0.74701]
[1739390980475,3.2078,2677.6,2677.1,3.87785522]
[1739390980676,5.07509,2677.6,2677.1,1.32671]
[1739390980982,0.5471,2677.8,2677.0,0.00561094]
[1739390980983,0.74704,2677.1,2677.0,0.00561094]
[1739390981478,2.44374,2677.1,2677.0,0.00561094]
[1739390983782,2.44374,2677.1,2677.0,0.75268094]
[1739390983982,1.6967,2677.1,2677.0,0.75268094]
[1739390984183,1.1491,2677.1,2677.0,0.75268094]
[1739390984482,3.95483,2677.2,2677.1,0.74704]
[1739390984791,3.95483,2677.2,2677.1,1.31594]
[1739390985282,3.95483,2677.2,2677.0,0.00561094]
[1739390985473,0.74704,2677.1,2677.0,0.00561094]
[1739390985681,0.74704,2677.1,2677.0,0.75265094]
[1739390986375,3.95482,2677.2,2677.1,0.74704]
[1739390986575,3.2078,2677.2,2677.1,0.74704]
[1739390986780,3.95481,2677.2,2677.1,0.74704]
[1739390986974,3.2078,2677.2,2677.1,4.04519522]
[1739390987180,3.2078,2677.2,2677.1,4.59869522]
[1739390987585,3.95481,2677.2,2677.1,4.59869522]
[1739390987792,3.95481,2677.2,2677.1,1.30054]
[1739390988478,1.1228,2677.6,2677.1,1.30054]
[1739390988479,4.3306,2677.6,2677.1,0.5535]
[1739390988680,0.74701,2677.2,2677.1,0.5535]
[1739390988882,4.3306,2677.6,2677.1,0.5535]
[1739390989191,0.74699,2677.3,2677.2,0.74699]
[1739390989688,4.3306,2677.6,2677.1,0.5535]
[1739390989981,0.74701,2677.2,2677.1,1.30054]
[1739390990380,0.747,2677.3,2677.2,0.747]
[1739390990780,4.3306,2677.6,2677.1,0.5535]
[1739390990781,6.0196,2677.6,2677.1,0.5535]
[1739390990985,6.0196,2677.6,2677.2,0.74698]
[1739390990986,0.747,2677.3,2677.2,0.74698]
[1739390991181,0.74699,2677.3,2677.2,0.74699]
[1739390991387,0.74698,2677.4,2677.3,0.74697]
[1739390993490,0.74698,2677.4,2677.1,0.5535]
[1739390993491,0.74701,2677.3,2677.2,0.74699]
[1739390993690,0.74704,2677.2,2677.1,0.74701]
[1739390994092,0.74701,2677.3,2677.2,0.74699]
[1739390994295,2.8118,2677.6,2677.1,1.86761]
[1739390994494,2.8118,2677.6,2677.4,0.74693]
[1739390994495,0.74695,2677.5,2677.4,0.74693]
[1739390996495,0.74689,2677.7,2677.4,3.29815522]
[1739390996795,0.74689,2677.7,2677.6,0.7469]
[1739390997394,2.43587,2677.8,2677.7,0.74687]
[1739390997898,0.74687,2677.8,2677.7,0.74687]
[1739390999194,1.31073,2677.9,2677.8,0.74684]
[1739390999596,0.5639,2677.9,2677.4,5.16554522]
[1739390999801,0.74687,2677.8,2677.7,0.74685]
[1739391000193,1.31074,2677.9,2677.8,0.74684]
[1739391000593,0.74686,2677.8,2677.7,0.74684]
[1739391000793,2.8468,2678.1,2677.5,1.86731]
[1739391000997,0.74681,2678.0,2677.9,0.7468]
[1739391001800,0.74682,2677.9,2677.8,1.32292]
[1739391002194,0.74682,2677.9,2677.8,0.5761]
[1739391002392,0.74686,2677.8,2677.7,0.74685]
[1739391002595,0.74687,2677.8,2677.7,0.74685]
[1739391003401,0.74685,2677.9,2677.8,0.74682]
[1739391003900,0.74689,2677.7,2677.6,0.74688]
[1739391004404,0.74686,2677.8,2677.7,0.74685]
[1739391004596,0.74686,2677.8,2677.5,0.5846]
[1739391004597,1.689,2678.1,2677.5,0.5846]
[1739391004907,0.74678,2678.1,2678.0,0.74676]
[1739391005209,1.688,2678.3,2678.0,3.29815522]
[1739391005501,0.74673,2678.2,2678.1,1.34025]
[1739391006101,0.74673,2678.2,2678.1,1.34026]
[1739391006701,0.74679,2678.1,2678.0,0.74677]
[1739391006899,0.74679,2678.0,2677.9,3.95459]
[1739391007100,1.32559,2678.0,2677.9,3.95459]
[1739391010906,0.5788,2678.0,2677.6,3.2078]
[1739391011104,3.2078,2677.7,2677.0,0.00561094]
[1739391011303,3.2078,2677.7,2677.2,0.747]
[1739391011304,0.74699,2677.3,2677.2,0.747]
[1739391011611,3.2078,2677.7,2677.0,0.00561094]
[1739391011906,0.747,2677.3,2677.2,0.747]
[1739391012107,3.2078,2677.7,2677.3,0.74698]
[1739391012497,0.74696,2677.4,2677.3,0.74698]
[1739391013105,3.2078,2677.7,2677.1,0.74701]
[1739391013307,0.74704,2677.1,2677.0,0.00561094]
[1739391014817,0.74704,2677.1,2677.0,0.75268094]
[1739391015009,3.2078,2677.3,2677.0,0.00561094]
[1739391015205,0.74703,2677.2,2677.1,1.31142]
[1739391015805,0.74703,2677.2,2677.1,1.31144]
[1739391018010,0.5499,2677.5,2677.1,7.07035522]
[1739391018210,0.74689,2677.7,2677.6,0.74689]
[1739391018420,0.5897,2678.0,2677.5,0.5909]
[1739391018605,0.5897,2678.0,2677.7,3.29815522]
[1739391018606,0.74683,2677.9,2677.7,3.29815522]
[1739391018812,0.74683,2677.9,2677.7,4.04500522]
[1739391019318,0.74683,2677.9,2677.8,0.74684]
[1739391019517,0.74683,2677.9,2677.8,0.5548]
[1739391020006,2.45671,2678.0,2677.5,1.3378]
[1739391020212,2.45671,2678.0,2677.6,0.74689]
[1739391020213,0.74687,2677.7,2677.6,0.74689]
[1739391020811,0.7469,2677.6,2677.5,1.33782]
[1739391021008,0.7469,2677.6,2677.4,0.74694]
[1739391021212,0.7469,2677.6,2677.5,0.74693]
[1739391021618,0.74689,2677.7,2677.3,3.2078]
[1739391021813,0.74689,2677.7,2677.6,0.7469]
[1739391022014,0.5897,2678.0,2677.7,0.74686]
[1739391022216,0.74684,2677.9,2677.8,0.74682]
[1739391022519,1.33651,2678.0,2677.9,0.74682]
[1739391022817,1.33649,2678.0,2677.9,0.74682]
[1739391023218,0.5897,2678.0,2677.9,0.74682]
[1739391023419,3.2078,2678.1,2678.0,0.74679]
[1739391023620,0.74671,2678.3,2678.2,0.74672]
[1739391023918,0.74668,2678.4,2678.2,0.74672]
[1739391024319,0.5821,2678.5,2678.0,3.29815522]
[1739391024522,0.75033396,2678.6,2678.3,3.29815522]
[1739391024811,0.00370396,2678.6,2678.5,0.74665]
[1739391025119,0.75032396,2678.6,2678.5,0.74665]
[1739391028318,0.75032396,2678.6,2678.4,1.1373]
[1739391028620,0.75032396,2678.6,2678.4,1.32458]
[1739391028621,0.74665,2678.5,2678.4,1.32458]
[1739391028816,0.74665,2678.5,2678.4,0.74668]
[1739391029021,0.74669,2678.4,2678.3,0.74668]
[1739391029618,0.00370396,2678.6,2678.1,0.5994]
[1739391029832,3.2078,2678.5,2677.9,3.2078]
[1739391030127,0.74675,2678.2,2678.1,0.74674]
[1739391030825,1.30423,2678.3,2678.2,0.74673]